Workbook

Sheet AAPLforClass
A1: date | B1: DIVAMT | C1: FACPR | D1: PRC | E1: Monthly log return | G1: Difference from Mean | I1: Squared Difference | M1: SHROUT (in '000) | X1: vwretd
A2: 19900131 | D2: 34 | I2: from mean (distance) | M2: 125202 | X2: -0.070115
A3: 19900228 | B3: 0.11 | C3: 0 | D3: 34 | E3: =LN(D3+B3)-LN(D2/(1+C3)) -> 0.003230071814 | G3: =E3-$E$364 -> -0.01262861837 | I3: =G3^2 -> 0.000159482002 | M3: 125202 | X3: 0.014901
A4: 19900330 | D4: 40.25 | E4: =LN(D4+B4)-LN(D3/(1+C4)) -> 0.1687494792 | G4: =E4-$E$364 -> 0.1528907891 | I4: =G4^2 -> 0.02337559338 | M4: 123270 | X4: 0.02414
A5: 19900430 | D5: 39.375 | E5: -0.02197890672 | G5: -0.03783759691 | I5: 0.00143168374 | M5: 123270 | X5: -0.028286
A6: 19900531 | B6: 0.11 | C6: 0 | D6: 41.25 | E6: 0.04918313305 | G6: 0.03332444287 | I6: 0.001110518492 | M6: 123270 | X6: 0.088934
A7: 19900629 | D7: 44.75 | E7: 0.08144033194 | G7: 0.06558164175 | I7: 0.004300951735 | M7: 119668 | X7: -0.004196
A8: 19900731 | D8: 42 | E8: -0.06342182644 | G8: -0.07928051662 | I8: 0.006285400316 | M8: 119668 | X8: -0.009403
A9: 19900831 | B9: 0.11 | C9: 0 | D9: 37 | E9: -0.1237831432 | G9: -0.1396418334 | I9: 0.01949984163 | M9: 119668 | X9: -0.091905
A10: 19900928 | D10: 29 | E10: -0.2436220827 | G10: -0.2594807728 | I10: 0.06733027148 | M10: 115359 | X10: -0.053843
A11: 19901031 | D11: 30.75 | E11: 0.05859416427 | G11: 0.04273547408 | I11: 0.001826320745 | M11: 115359 | X11: -0.012504
A12: 19901130 | B12: 0.12 | C12: 0 | D12: 36.75 | E12: 0.181508218 | G12: 0.1656495278 | I12: 0.02743976606 | M12: 115359 | X12: 0.065744
A13: 19901231 | D13: 43 | E13: 0.15706189 | G13: 0.1412031998 | I13: 0.01993834365 | M13: 114314 | X13: 0.029513
A14: 19910131 | D14: 55.5 | E14: 0.2551829051 | G14: 0.2393242149 | I14: 0.05727607982 | M14: 114314 | X14: 0.049078
A15: 19910228 | B15: 0.12 | C15: 0 | D15: 57.25 | E15: 0.03313849786 | G15: 0.01727980768 | I15: 0.0002985917533 | M15: 114314 | X15: 0.075847
A16: 19910328 | D16: 68 | E16: 0.1720800627 | G16: 0.1562213726 | I16: 0.02440511724 | M16: 118956 | X16: 0.028923
A17: 19910430 | D17: 55 | E17: -0.2121745199 | G17: -0.2280332101 | I17: 0.05199914492 | M17: 118956 | X17: 0.003315
A18: 19910531 | B18: 0.12 | C18: 0 | D18: 47 | E18: -0.1546356459 | G18: -0.1704943361 | I18: 0.02906831863 | M18: 118956 | X18: 0.040733
A19: 19910628 | D19: 41.5 | E19: -0.1244541745 | G19: -0.1403128647 | I19: 0.01968769999 | M19: 117490 | X19: -0.044029
A20: 19910731 | D20: 46.25 | E20: 0.1083680367 | G20: 0.09250934654 | I20: 0.008557979196 | M20: 117490 | X20: 0.046795
A21: 19910830 | B21: 0.12 | C21: 0 | D21: 53 | E21: 0.1384920412 | G21: 0.122633351 | I21: 0.01503893878 | M21: 117490 | X21: 0.026817
A22: 19910930 | D22: 49.5 | E22: -0.06831924398 | G22: -0.08417793416 | I22: 0.0070859246 | M22: 118386 | X22: -0.010975
A23: 19911031 | D23: 51.5 | E23: 0.0396091381 | G23: 0.02375044791 | I23: 0.0005640837759 | M23: 118386 | X23: 0.017815
A24: 19911129 | B24: 0.12 | C24: 0 | D24: 50.75 | E24: -0.01230844884 | G24: -0.02816713902 | I24: 0.0007933877206 | M24: 118386 | X24: -0.037275
A25: 19911231 | D25: 56.375 | E25: 0.1051141799 | G25: 0.08925548971 | I25: 0.007966542444 | M25: 118490 | X25: 0.106778
A26: 19920131 | D26: 64.75 | E26: 0.1385079028 | G26: 0.1226492126 | I26: 0.01504282934 | M26: 118490 | X26: -0.001182
A27: 19920228 | B27: 0.12 | C27: 0 | D27: 67.5 | E27: 0.0433700967 | G27: 0.02751140651 | I27: 0.0007568774884 | M27: 118490 | X27: 0.013354
A28: 19920331 | D28: 58.25 | E28: -0.1473835054 | G28: -0.1632421956 | I28: 0.02664801443 | M28: 120164 | X28: -0.0237
A29: 19920430 | D29: 60.125 | E29: 0.03168163598 | G29: 0.01582294579 | I29: 0.0002503656136 | M29: 120164 | X29: 0.013419
A30: 19920529 | D30: 59.75 | E30: -0.006256537614 | G30: -0.0221152278 | I30: 0.0004890833007 | M30: 120164 | X30: 0.006439
A31: 19920630 | B31: 0.12 | C31: 0 | D31: 48 | E31: -0.2164712997 | G31: -0.2323299899 | I31: 0.0539772242 | M31: 118586 | X31: -0.019271
A32: 19920731 | D32: 46.75 | E32: -0.02638675517 | G32: -0.04224544536 | I32: 0.001784677654 | M32: 118586 | X32: 0.0399
A33: 19920831 | B33: 0.12 | C33: 0 | D33: 46 | E33: -0.01356756033 | G33: -0.02942625052 | I33: 0.0008659042197 | M33: 118586 | X33: -0.02082
A34: 19920930 | D34: 45.125 | E34: -0.01920497984 | G34: -0.03506367002 | I34: 0.001229460955 | M34: 118586 | X34: 0.012447
A35: 19921030 | D35: 52.5 | E35: 0.1513767529 | G35: 0.1355180628 | I35: 0.01836514533 | M35: 118586 | X35: 0.010986
A36: 19921130 | B36: 0.12 | C36: 0 | D36: 57.5 | E36: 0.09305656006 | G36: 0.07719786987 | I36: 0.005959511113 | M36: 118586 | X36: 0.040193
A37: 19921231 | D37: 59.75 | E37: 0.03838424301 | G37: 0.02252555282 | I37: 0.0005074005299 | M37: 117841 | X37: 0.017768
A38: 19930129 | D38: 59.5 | E38: -0.00419287826 | G38: -0.02005156845 | I38: 0.0004020653972 | M38: 117841 | X38: 0.012644
A39: 19930226 | B39: 0.12 | C39: 0 | D39: 53 | E39: -0.1134228074 | G39: -0.1292814976 | I39: 0.01671370561 | M39: 117841 | X39: 0.005402
A40: 19930331 | D40: 51.5 | E40: -0.02871010588 | G40: -0.04456879607 | I40: 0.001986377583 | M40: 116595 | X40: 0.025116
A41: 19930430 | D41: 51.25 | E41: -0.004866189651 | G41: -0.02072487984 | I41: 0.0004295206443 | M41: 116595 | X41: -0.0254
A42: 19930528 | B42: 0.12 | C42: 0 | D42: 56.625 | E42: 0.1018519287 | G42: 0.08599323855 | I42: 0.007394837076 | M42: 116595 | X42: 0.029599
A43: 19930630 | D43: 39.5 | E43: -0.3601499119 | G43: -0.3760086021 | I43: 0.1413824688 | M43: 115614 | X43: 0.00544
A44: 19930730 | D44: 27.75 | E44: -0.3530648317 | G44: -0.3689235219 | I44: 0.136104565 | M44: 115614 | X44: -0.000792
A45: 19930831 | B45: 0.12 | C45: 0 | D45: 26.5 | E45: -0.04157302723 | G45: -0.05743171741 | I45: 0.003298402165 | M45: 115614 | X45: 0.039479
A46: 19930930 | D46: 23.375 | E46: -0.1254776578 | G46: -0.141336348 | I46: 0.01997596327 | M46: 116147 | X46: 0.000641
A47: 19931029 | D47: 30.75 | E47: 0.2742229191 | G47: 0.2583642289 | I47: 0.06675207477 | M47: 116147 | X47: 0.018064
A48: 19931130 | B48: 0.12 | C48: 0 | D48: 31.5 | E48: 0.02789983753 | G48: 0.01204114734 | I48: 0.0001449892293 | M48: 116147 | X48: -0.017606
A49: 19931231 | D49: 29.25 | E49: -0.07410797215 | G49: -0.08996666234 | I49: 0.008094000333 | M49: 116495 | X49: 0.019515
A50: 19940131 | D50: 32.75 | E50: 0.1130233884 | G50: 0.09716469822 | I50: 0.00944097858 | M50: 116495 | X50: 0.031466
A51: 19940228 | B51: 0.12 | C51: 0 | D51: 36.5 | E51: 0.1116915772 | G51: 0.09583288698 | I51: 0.009183942227 | M51: 116495 | X51: -0.024226
A52: 19940331 | D52: 33.25 | E52: -0.09325749349 | G52: -0.1091161837 | I52: 0.01190634154 | M52: 118140 | X52: -0.045795
A53: 19940429 | D53: 30 | E53: -0.1028573854 | G53: -0.1187160756 | I53: 0.01409350661 | M53: 118140 | X53: 0.009478
A54: 19940531 | B54: 0.12 | C54: 0 | D54: 29.25 | E54: -0.02122363645 | G54: -0.03708232664 | I54: 0.001375098949 | M54: 118140 | X54: 0.00936
A55: 19940630 | D55: 26.5 | E55: -0.09873484069 | G55: -0.1145935309 | I55: 0.01313167732 | M55: 118140 | X55: -0.027909
A56: 19940729 | D56: 33.6875 | E56: 0.2399821157 | G56: 0.2241234255 | I56: 0.05023130985 | M56: 118333 | X56: 0.030628
A57: 19940831 | B57: 0.12 | C57: 0 | D57: 36.1875 | E57: 0.07489748283 | G57: 0.05903879264 | I57: 0.003485579037 | M57: 118333 | X57: 0.042597
A58: 19940930 | D58: 33.6875 | E58: -0.07158690666 | G58: -0.08744559685 | I58: 0.007646732409 | M58: 119543 | X58: -0.018363
A59: 19941031 | D59: 43.1875 | E59: 0.2484242529 | G59: 0.2325655627 | I59: 0.05408674094 | M59: 119543 | X59: 0.01452
A60: 19941130 | B60: 0.12 | C60: 0 | D60: 37.25 | E60: -0.144682858 | G60: -0.1605415482 | I60: 0.0257735887 | M60: 119543 | X60: -0.037219
A61: 19941230 | D61: 39 | E61: 0.0459097013 | G61: 0.03005101112 | I61: 0.0009030632692 | M61: 119890 | X61: 0.012609
A62: 19950131 | D62: 40.375 | E62: 0.03464913541 | G62: 0.01879044523 | I62: 0.0003530808318 | M62: 119890 | X62: 0.020399
A63: 19950228 | B63: 0.12 | C63: 0 | D63: 39.5 | E63: -0.01887674027 | G63: -0.03473543046 | I63: 0.001206550129 | M63: 119890 | X63: 0.039615
A64: 19950331 | D64: 35.25 | E64: -0.1138351426 | G64: -0.1296938328 | I64: 0.01682049028 | M64: 121093 | X64: 0.027041
A65: 19950428 | D65: 38.25 | E65: 0.08167803101 | G65: 0.06581934083 | I65: 0.004332185627 | M65: 121093 | X65: 0.025048
A66: 19950531 | B66: 0.12 | C66: 0 | D66: 41.5625 | E66: 0.08593781618 | G66: 0.07007912599 | I66: 0.0049110839 | M66: 121158 | X66: 0.034007
A67: 19950630 | D67: 46.4375 | E67: 0.1109090041 | G67: 0.09505031388 | I67: 0.009034562168 | M67: 121905 | X67: 0.031169
A68: 19950731 | D68: 45 | E68: =LN(D68+B68)-LN(D67/(1+C68)) -> -0.03144483271 | G68: =E68-$E$364 -> -0.04730352289 | I68: =G68^2 -> 0.002237623278 | M68: 121905 | X68: 0.040779
A69: 19950831 | B69: 0.12 | C69: 0 | D69: 43 | E69: -0.04267556317 | G69: -0.05853425336 | I69: 0.003426258816 | M69: 121905 | X69: 0.009298
A70: 19950929 | D70: 37.25 | E70: -0.1435481709 | G70: -0.1594068611 | I70: 0.02541054735 | M70: 122922 | X70: 0.036365
A71: 19951031 | D71: 36.3125 | E71: -0.02548991021 | G71: -0.0413486004 | I71: 0.001709706755 | M71: 122922 | X71: -0.011314
A72: 19951130 | B72: 0.12 | C72: 0 | D72: 38.125 | E72: 0.05185079816 | G72: 0.03599210798 | I72: 0.001295431837 | M72: 122922 | X72: 0.042804
A73: 19951229 | D73: 31.875 | E73: -0.1790482314 | G73: -0.1949069216 | I73: 0.0379887081 | M73: 123118 | X73: 0.015183
A74: 19960131 | D74: 27.625 | E74: -0.1431008436 | G74: -0.1589595338 | I74: 0.02526813339 | M74: 123118 | X74: 0.028138
A75: 19960229 | D75: 27.5 | E75: -0.004535155165 | G75: -0.02039384535 | I75: 0.0004159089282 | M75: 123118 | X75: 0.01631
A76: 19960329 | D76: 24.5625 | E76: -0.112965115 | G76: -0.1288238052 | I76: 0.01659557279 | M76: 123685 | X76: 0.010925
A77: 19960430 | D77: 24.375 | E77: -0.007662872746 | G77: -0.02352156293 | I77: 0.0005532639228 | M77: 123685 | X77: 0.025508
A78: 19960531 | D78: 26.125 | E78: 0.0693346934 | G78: 0.05347600321 | I78: 0.00285968292 | M78: 123685 | X78: 0.026802
A79: 19960628 | D79: 21 | E79: -0.2183702726 | G79: -0.2342289627 | I79: 0.05486320699 | M79: 123785 | X79: -0.008302
A80: 19960731 | D80: 22 | E80: 0.04652001563 | G80: 0.03066132545 | I80: 0.0009401168783 | M80: 123785 | X80: -0.053814
A81: 19960830 | D81: 24.25 | E81: 0.09737416403 | G81: 0.08151547384 | I81: 0.006644772475 | M81: 123785 | X81: 0.032448
A82: 19960930 | D82: 22.1875 | E82: -0.08888755015 | G82: -0.1047462403 | I82: 0.01097177486 | M82: 124497 | X82: 0.053035
A83: 19961031 | D83: 23 | E83: 0.03596514869 | G83: 0.02010645851 | I83: 0.0004042696737 | M83: 124497 | X83: 0.013729
A84: 19961129 | D84: 24.125 | E84: 0.0477544313 | G84: 0.03189574111 | I84: 0.001017338301 | M84: 124497 | X84: 0.065577
A85: 19961231 | D85: 20.875 | E85: -0.1446963765 | G85: -0.1605550667 | I85: 0.02577792943 | M85: 124585 | X85: -0.011397
A86: 19970131 | D86: 16.625 | E86: -0.2276446842 | G86: -0.2435033744 | I86: 0.05929389334 | M86: 124585 | X86: 0.053473
A87: 19970228 | D87: 16.25 | E87: -0.02281467777 | G87: -0.03867336795 | I87: 0.001495629389 | M87: 124585 | X87: -0.001122
A88: 19970331 | D88: 18.25 | E88: 0.1160721713 | G88: 0.1002134811 | I88: 0.01004274179 | M88: 126425 | X88: -0.044868
A89: 19970430 | D89: 17 | E89: -0.07095173597 | G89: -0.08681042616 | I89: 0.00753605009 | M89: 126425 | X89: 0.042373
A90: 19970530 | D90: 16.625 | E90: -0.02230575751 | G90: -0.0381644477 | I90: 0.001456525068 | M90: 126425 | X90: 0.071624
A91: 19970630 | D91: 14.25 | E91: -0.1541506798 | G91: -0.17000937 | I91: 0.02890318589 | M91: 126559 | X91: 0.044095
A92: 19970731 | D92: 17.5 | E92: 0.2054439742 | G92: 0.189585284 | I92: 0.03594257992 | M92: 126559 | X92: 0.076514
A93: 19970829 | D93: 21.75 | E93: 0.2174128766 | G93: 0.2015541864 | I93: 0.04062409006 | M93: 126559 | X93: -0.036291
A94: 19970930 | D94: 21.6875 | E94: -0.002877699828 | G94: -0.01873639001 | I94: 0.0003510523108 | M94: 127949 | X94: 0.058499
A95: 19971031 | D95: 17.03125 | E95: -0.2416861658 | G95: -0.257544856 | I95: 0.06632935287 | M95: 128019 | X95: -0.034436
A96: 19971128 | D96: 17.75 | E96: 0.04133562406 | G96: 0.02547693387 | I96: 0.0006490741595 | M96: 128019 | X96: 0.030404
A97: 19971231 | D97: 13.125 | E97: -0.3018667074 | G97: -0.3177253976 | I97: 0.1009494283 | M97: 128019 | X97: 0.017817
A98: 19980130 | D98: 18.3125 | E98: 0.3330650783 | G98: 0.3172063881 | I98: 0.1006198927 | M98: 128019 | X98: 0.004502
A99: 19980227 | D99: 23.625 | E99: 0.2547215866 | G99: 0.2388628964 | I99: 0.05705548328 | M99: 128019 | X99: 0.073303
A100: 19980331 | D100: 27.5 | E100: 0.1518805313 | G100: 0.1360218411 | I100: 0.01850194126 | M100: 133041 | X100: 0.051301
A101: 19980430 | D101: 27.375 | E101: -0.004555816536 | G101: -0.02041450672 | I101: 0.0004167520847 | M101: 133041 | X101: 0.010904
A102: 19980529 | D102: 26.625 | E102: -0.02777956411 | G102: -0.04363825429 | I102: 0.001904297238 | M102: 133041 | X102: -0.025748
A103: 19980630 | D103: 28.6875 | E103: 0.07461086379 | G103: 0.0587521736 | I103: 0.003451817903 | M103: 134639 | X103: 0.031944
A104: 19980731 | D104: 34.625 | E104: 0.1881144767 | G104: 0.1722557865 | I104: 0.02967205598 | M104: 134639 | X104: -0.023367
A105: 19980831 | D105: 31.1875 | E105: -0.104558591 | G105: -0.1204172812 | I105: 0.01450032161 | M105: 134639 | X105: -0.157844
A106: 19980930 | D106: 38.125 | E106: 0.2008528614 | G106: 0.1849941712 | I106: 0.03422284339 | M106: 135638 | X106: 0.063827
A107: 19981030 | D107: 37.125 | E107: -0.0265796378 | G107: -0.04243832799 | I107: 0.001801011683 | M107: 135638 | X107: 0.074393
A108: 19981130 | D108: 31.9375 | E108: -0.1505097292 | G108: -0.1663684193 | I108: 0.02767845096 | M108: 135638 | X108: 0.062023
A109: 19981231 | D109: 40.9375 | E109: 0.2482656454 | G109: 0.2324069552 | I109: 0.05401299285 | M109: 136417 | X109: 0.063051
A110: 19990129 | D110: 41.1875 | E110: 0.006088298867 | G110: -0.009770391319 | I110: 9.546054653e-05 | M110: 136417 | X110: 0.038456
A111: 19990226 | D111: 34.8125 | E111: -0.1681582946 | G111: -0.1840169848 | I111: 0.03386225068 | M111: 136417 | X111: -0.038085
A112: 19990331 | D112: 35.9375 | E112: 0.03180480087 | G112: 0.01594611068 | I112: 0.0002542784459 | M112: 136417 | X112: 0.037932
A113: 19990430 | D113: 46 | E113: 0.2468600779 | G113: 0.2310013877 | I113: 0.05336164114 | M113: 136417 | X113: 0.049104
A114: 19990528 | D114: 44.0625 | E114: -0.04303231592 | G114: -0.0588910061 | I114: 0.0034681506 | M114: 136417 | X114: -0.020718
A115: 19990630 | D115: 46.3125 | E115: 0.04980282248 | G115: 0.0339441323 | I115: 0.001152204117 | M115: 136417 | X115: 0.050829
A116: 19990730 | D116: 55.6875 | E116: 0.1843438022 | G116: 0.168485112 | I116: 0.02838723296 | M116: 136417 | X116: -0.030843
A117: 19990831 | D117: 65.25 | E117: 0.158470341 | G117: 0.1426116508 | I117: 0.02033808294 | M117: 136417 | X117: -0.009931
A118: 19990930 | D118: 63.3125 | E118: -0.03014326419 | G118: -0.04600195438 | I118: 0.002116179807 | M118: 161159 | X118: -0.022693
A119: 19991029 | D119: 80.125 | E119: 0.2355051332 | G119: 0.219646443 | I119: 0.04824455994 | M119: 161159 | X119: 0.062095
A120: 19991130 | D120: 97.875 | E120: 0.2001032391 | G120: 0.1842445489 | I120: 0.03394605379 | M120: 161159 | X120: 0.036824
A121: 19991231 | D121: 102.8125 | E121: 0.04921578665 | G121: 0.03335709646 | I121: 0.001112695884 | M121: 161159 | X121: 0.083754
A122: 20000131 | D122: 103.75 | E122: 0.009077218151 | G122: -0.006781472035 | I122: 4.598836296e-05 | M122: 161159 | X122: -0.039624
A123: 20000229 | D123: 114.625 | E123: 0.09968177147 | G123: 0.08382308128 | I123: 0.007026308955 | M123: 161159 | X123: 0.031778
A124: 20000331 | D124: 135.8125 | E124: 0.1696093274 | G124: 0.1537506373 | I124: 0.02363925846 | M124: 162680 | X124: 0.053501
A125: 20000428 | D125: 124.0625 | E125: -0.09048978714 | G125: -0.1063484773 | I125: 0.01130999863 | M125: 162680 | X125: -0.059527
A126: 20000531 | D126: 84 | E126: -0.389968672 | G126: -0.4058273622 | I126: 0.1646958479 | M126: 162744 | X126: -0.03887
A127: 20000630 | B127: 0 | C127: 1 | D127: 52.375 | E127: 0.22075976 | G127: 0.2049010698 | I127: 0.04198444839 | M127: 324826 | X127: 0.051603
A128: 20000731 | D128: 50.8125 | E128: -0.03028699093 | G128: -0.04614568112 | I128: 0.002129423886 | M128: 324969 | X128: -0.017712
A129: 20000831 | D129: 60.9375 | E129: 0.1817063615 | G129: 0.1658476713 | I129: 0.02750545006 | M129: 324969 | X129: 0.075006
A130: 20000929 | D130: 25.75 | E130: -0.8614141216 | G130: -0.8772728118 | I130: 0.7696075864 | M130: 335677 | X130: -0.051141
A131: 20001031 | D131: 19.5625 | E131: -0.2748201588 | G131: -0.290678849 | I131: 0.08449419325 | M131: 335766 | X131: -0.02449
A132: 20001130 | D132: 16.5 | E132: =LN(D132+B132)-LN(D131/(1+C132)) -> -0.1702540874 | G132: =E132-$E$364 -> -0.1861127776 | I132: =G132^2 -> 0.03463796598 | M132: 335766 | X132: -0.102372
A133: 20001229 | D133: 14.875 | E133: -0.1036784295 | G133: -0.1195371197 | I133: 0.01428912298 | M133: 345307 | X133: 0.020422
A134: 20010131 | D134: 21.625 | E134: 0.3741681014 | G134: 0.3583094112 | I134: 0.1283856342 | M134: 346029 | X134: 0.039601
A135: 20010228 | D135: 18.25 | E135: -0.1696849728 | G135: -0.185543663 | I135: 0.03442645087 | M135: 346069 | X135: -0.099102
A136: 20010330 | D136: 22.07 | E136: 0.1900541402 | G136: 0.1741954501 | I136: 0.03034405482 | M136: 346541 | X136: -0.070392
A137: 20010430 | D137: 25.49 | E137: 0.1440669981 | G137: 0.1282083079 | I137: 0.01643737022 | M137: 346541 | X137: 0.083829
A138: 20010531 | D138: 19.95 | E138: -0.2450570751 | G138: -0.2609157652 | I138: 0.06807703655 | M138: 349023 | X138: 0.010455
A139: 20010629 | D139: 23.25 | E139: 0.1530759887 | G139: 0.1372172985 | I139: 0.01882858701 | M139: 350474 | X139: -0.017553
A140: 20010731 | D140: 18.79 | E140: -0.2129803186 | G140: -0.2288390088 | I140: 0.05236729195 | M140: 350474 | X140: -0.018298
A141: 20010831 | D141: 18.55 | E141: -0.01285502437 | G141: -0.02871371456 | I141: 0.0008244774037 | M141: 350812 | X141: -0.058981
A142: 20010928 | D142: 15.51 | E142: -0.1789848119 | G142: -0.1948435021 | I142: 0.03796399029 | M142: 350922 | X142: -0.091485
A143: 20011031 | D143: 17.56 | E143: 0.124138611 | G143: 0.1082799208 | I143: 0.01172454126 | M143: 351116 | X143: 0.027836
A144: 20011130 | D144: 21.3 | E144: 0.1930834845 | G144: 0.1772247943 | I144: 0.03140862772 | M144: 351116 | X144: 0.078777
A145: 20011231 | D145: 21.9 | E145: 0.02777956411 | G145: 0.01192087392 | I145: 0.000142107235 | M145: 352459 | X145: 0.017853
A146: 20020131 | D146: 24.72 | E146: 0.1211259958 | G146: 0.1052673056 | I146: 0.01108120562 | M146: 353250 | X146: -0.015975
A147: 20020228 | D147: 21.7 | E147: -0.130300372 | G147: -0.1461590622 | I147: 0.02136247147 | M147: 353383 | X147: -0.021696
A148: 20020328 | D148: 23.67 | E148: 0.08689616298 | G148: 0.07103747279 | I148: 0.005046322541 | M148: 354085 | X148: 0.044678
A149: 20020430 | D149: 24.27 | E149: 0.02503259621 | G149: 0.009173906026 | I149: 8.416055178e-05 | M149: 354085 | X149: -0.049618
A150: 20020531 | D150: 23.3 | E150: -0.04078765917 | G150: -0.05664634935 | I150: 0.003208808895 | M150: 355700 | X150: -0.010521
A151: 20020628 | D151: 17.72 | E151: -0.2737594154 | G151: -0.2896181056 | I151: 0.08387864708 | M151: 358855 | X151: -0.070251
A152: 20020731 | D152: 15.26 | E152: -0.1494589193 | G152: -0.1653176095 | I152: 0.02732991201 | M152: 358886 | X152: -0.081149
A153: 20020830 | D153: 14.75 | E153: -0.03399194307 | G153: -0.04985063326 | I153: 0.002485085636 | M153: 358886 | X153: 0.007976
A154: 20020930 | D154: 14.5 | E154: -0.01709443336 | G154: -0.03295312355 | I154: 0.001085908351 | M154: 358959 | X154: -0.09992
A155: 20021031 | D155: 16.07 | E155: 0.1028055303 | G155: 0.08694684014 | I155: 0.00755975301 | M155: 359008 | X155: 0.074919
A156: 20021129 | D156: 15.5 | E156: -0.03611415582 | G156: -0.05197284601 | I156: 0.002701176722 | M156: 359008 | X156: 0.061263
A157: 20021231 | D157: 14.33 | E157: -0.07848478209 | G157: -0.09434347227 | I157: 0.00890069076 | M157: 360257 | X157: -0.053315
A158: 20030131 | D158: 14.36 | E158: 0.00209132178 | G158: -0.01376736841 | I158: 0.0001895404328 | M158: 360479 | X158: -0.0234
A159: 20030228 | D159: 15.01 | E159: 0.04427008203 | G159: 0.02841139184 | I159: 0.0008072071862 | M159: 360479 | X159: -0.015391
A160: 20030331 | D160: 14.14 | E160: -0.05970898518 | G160: -0.07556767536 | I160: 0.00571047356 | M160: 365545 | X160: 0.010318
A161: 20030430 | D161: 14.22 | E161: 0.005641763907 | G161: -0.01021692628 | I161: 0.0001043855826 | M161: 365545 | X161: 0.08275
A162: 20030530 | D162: 17.95 | E162: 0.2329406906 | G162: 0.2170820004 | I162: 0.04712459489 | M162: 365611 | X162: 0.063436
A163: 20030630 | D163: 19.06 | E163: 0.06000178329 | G163: 0.04414309311 | I163: 0.001948612669 | M163: 366993 | X163: 0.01632
A164: 20030731 | D164: 21.08 | E164: 0.1007328254 | G164: 0.08487413526 | I164: 0.007203618836 | M164: 366993 | X164: 0.023098
A165: 20030829 | D165: 22.61 | E165: 0.07006756262 | G165: 0.05420887243 | I165: 0.00293860185 | M165: 362501 | X165: 0.024996
A166: 20030930 | D166: 20.72 | E166: -0.0872928689 | G166: -0.1031515591 | I166: 0.01064024414 | M166: 366727 | X166: -0.009116
A167: 20031031 | D167: 22.89 | E167: 0.09960071657 | G167: 0.08374202639 | I167: 0.007012726983 | M167: 367491 | X167: 0.060316
A168: 20031128 | D168: 20.91 | E168: -0.09047262052 | G168: -0.1063313107 | I168: 0.01130634764 | M168: 367491 | X168: 0.016593
A169: 20031231 | D169: 21.37 | E169: 0.02176055589 | G169: 0.005901865704 | I169: 3.483201879e-05 | M169: 368761 | X169: 0.045505
A170: 20040130 | D170: 22.56 | E170: 0.0541903573 | G170: 0.03833166711 | I170: 0.001469316704 | M170: 369730 | X170: 0.023037
A171: 20040227 | D171: 23.92 | E171: 0.05853650245 | G171: 0.04267781227 | I171: 0.00182139566 | M171: 369730 | X171: 0.015479
A172: 20040331 | D172: 27.04 | E172: 0.1226023221 | G172: 0.1067436319 | I172: 0.01139420295 | M172: 372855 | X172: -0.010667
A173: 20040430 | D173: 25.78 | E173: -0.04771825366 | G173: -0.06357694385 | I173: 0.004042027789 | M173: 380042 | X173: -0.024214
A174: 20040528 | D174: 28.06 | E174: 0.08474607716 | G174: 0.06888738698 | I174: 0.004745472085 | M174: 380042 | X174: 0.014058
A175: 20040630 | D175: 32.54 | E175: 0.1481250271 | G175: 0.1322663369 | I175: 0.01749438388 | M175: 385192 | X175: 0.021601
A176: 20040730 | D176: 32.34 | E176: -0.006165247642 | G176: -0.02202393783 | I176: 0.0004850538375 | M176: 387925 | X176: -0.03767
A177: 20040831 | D177: 34.49 | E177: 0.0643645728 | G177: 0.04850588261 | I177: 0.002352820648 | M177: 387925 | X177: 0.002728
A178: 20040930 | D178: 38.75 | E178: 0.1164613289 | G178: 0.1006026387 | I178: 0.01012089091 | M178: 391444 | X178: 0.020543
A179: 20041029 | D179: 52.4 | E179: 0.3017758355 | G179: 0.2859171453 | I179: 0.081748614 | M179: 391444 | X179: 0.017806
A180: 20041130 | D180: 67.05 | E180: 0.2465320184 | G180: 0.2306733282 | I180: 0.05321018435 | M180: 402058 | X180: 0.048208
A181: 20041231 | D181: 64.4 | E181: -0.04032497662 | G181: -0.0561836668 | I181: 0.003156604416 | M181: 404549 | X181: 0.035177
A182: 20050131 | D182: 76.9 | E182: 0.1773922434 | G182: 0.1615335532 | I182: 0.02609308881 | M182: 408586 | X182: -0.026551
A183: 20050228 | B183: 0 | C183: 1 | D183: 44.86 | E183: 0.1541878331 | G183: 0.138329143 | I183: 0.01913495179 | M183: 817172 | X183: 0.022676
A184: 20050331 | D184: 41.67 | E184: -0.07376508366 | G184: -0.08962377384 | I184: 0.008032420838 | M184: 823137 | X184: -0.016948
A185: 20050429 | D185: 36.06 | E185: -0.1445972277 | G185: -0.1604559178 | I185: 0.02574610157 | M185: 823934 | X185: -0.025185
A186: 20050531 | D186: 39.7593 | E186: 0.09765955822 | G186: 0.08180086804 | I186: 0.006691382012 | M186: 823934 | X186: 0.037954
A187: 20050630 | D187: 36.81 | E187: -0.07707422861 | G187: -0.0929329188 | I187: 0.008636527396 | M187: 827981 | X187: 0.011526
A188: 20050729 | D188: 42.65 | E188: 0.1472577265 | G188: 0.1313990364 | I188: 0.01726570676 | M188: 829829 | X188: 0.043335
A189: 20050831 | D189: 46.89 | E189: 0.09477715916 | G189: 0.07891846898 | I189: 0.006228124746 | M189: 829829 | X189: -0.005944
A190: 20050930 | D190: 53.61 | E190: 0.1339311847 | G190: 0.1180724946 | I190: 0.01394111397 | M190: 835019 | X190: 0.010607
A191: 20051031 | D191: 57.59 | E191: 0.07161332368 | G191: 0.05575463349 | I191: 0.003108579156 | M191: 839777 | X191: -0.020873
A192: 20051130 | D192: 67.82 | E192: 0.1635081952 | G192: 0.147649505 | I192: 0.02180037632 | M192: 842768 | X192: 0.040322
A193: 20051230 | D193: 71.89 | E193: 0.0582800363 | G193: 0.04242134611 | I193: 0.001799570606 | M193: 845617 | X193: 0.003457
A194: 20060131 | D194: 75.51 | E194: 0.04912792482 | G194: 0.03326923463 | I194: 0.001106841973 | M194: 848612 | X194: 0.040041
A195: 20060228 | D195: 68.49 | E195: -0.09757734861 | G195: -0.1134360388 | I195: 0.0128677349 | M195: 849656 | X195: -0.001639
A196: 20060331 | D196: 62.72 | E196: =LN(D196+B196)-LN(D195/(1+C196)) -> -0.08800737317 | G196: =E196-$E$364 -> -0.1038660634 | I196: =G196^2 -> 0.01078815912 | M196: 849188 | X196: 0.019042
A197: 20060428 | D197: 70.39 | E197: 0.1153708316 | G197: 0.09951214139 | I197: 0.009902666284 | M197: 850508 | X197: 0.012963
A198: 20060531 | D198: 59.77 | E198: -0.1635473448 | G198: -0.179406035 | I198: 0.03218652538 | M198: 850508 | X198: -0.031041
A199: 20060630 | D199: 57.27 | E199: -0.04272693643 | G199: -0.05858562662 | I199: 0.003432275646 | M199: 852988 | X199: -0.000388
A200: 20060731 | D200: 67.96 | E200: 0.1711423704 | G200: 0.1552836802 | I200: 0.02411302134 | M200: 852988 | X200: -0.001874
... 1342 more rows
